Cogmind - Beta 10.2 @@@ ROGUE MODE // 2021.04.13 @ 16:02:53 Player: Midas Result: Destroyed by S-10 Pest with Light Assault Rifle Performance ------------- Evolutions (1) 500 Regions Visited (2) 400 Robots Destroyed (6) 30 Value Destroyed (162) 162 Prototype IDs (0) 0 Alien Tech Used (0) 0 Bonus (0) 0 TOTAL SCORE: 1092 Bonus ------- None Cogmind --------- Core Integrity 0/400 Matter 286/300 Energy 94/100 System Corruption 0% Temperature Cool (0) Movement Core (150) Ox2 Location -9/Materials Parts ------- > --- POWER (1) -------- (None) > --- PROPULSION (3) --- (None) > --- UTILITY (3) ------ Small Storage Unit > --- WEAPON (2) ------- Shotgun > --- INVENTORY (6) ---- Hover Unit Peak State ------------ > --- POWER ------------ Ion Engine > --- PROPULSION ------- Aluminum Leg Aluminum Leg > --- UTILITY ---------- Small Storage Unit Sensor Array > --- WEAPON ----------- Light Assault Rifle Light Assault Rifle > --- INVENTORY -------- Ion Engine Light Treads Light Treads Hover Unit Assault Rifle Mining Claw [Rating: 7] Favorites ----------- Power Ion Engine Engine Ion Engine Propulsion Light Treads Treads Light Treads Leg Aluminum Leg Utility Small Storage Unit Device Sensor Array Storage Small Storage Unit Weapon Light Assault Rifle Ballistic Gun Light Assault Rifle Slashing Weapon Mining Claw Build | -11 -10 -9 ------- Run | Scr Mat Mat Slots Evolved 2 | . . 2 Power . | . . . Propulsion 1 | . . 1 Utility 1 | . . 1 Weapon . | . . . Parts Attached 7 | . 6 1 Power 1 | . 1 . Engine 1 | . 1 . Core . | . . . Reactor . | . . . Propulsion 2 | . 2 . Treads 2 | . 2 . Leg . | . . . Wheel . | . . . Hover . | . . . Flight . | . . . Utility 1 | . 1 . Device 1 | . 1 . Storage . | . . . Processor . | . . . Hackware . | . . . Protection . | . . . Artifact . | . . . Weapon 3 | . 2 1 Energy Gun . | . . . Energy Cannon . | . . . Ballistic Gun 2 | . 1 1 Ballistic Cannon . | . . . Launcher . | . . . Special Weapon . | . . . Impact Weapon . | . . . Slashing Weapon 1 | . 1 . Piercing Weapon . | . . . Special Melee Weapon . | . . . Unidentified Prototypes . | . . . Parts Lost 5 | . 1 4 Power 1 | . 1 . Propulsion 2 | . . 2 Utility . | . . . Weapon 2 | . . 2 Highest Loss Streak 4 | . 1 4 Average Slot Usage (%) 63 | . 83 41 Engine 7 | . 13 . Treads 11 | . 7 15 Leg 10 | . 19 . Device 1 | . 2 . Storage 12 | . 14 11 Ballistic Gun 15 | . 22 6 Slashing Weapon 5 | . 3 8 Naked Turns . | . . . Heaviest Build 13 | 11 13 8 Greatest Support 40 | 20 40 40 Greatest Overweight (x) 1 | . 1 1 Average Overweight (x) . | . . . Largest Inventory Capacity 6 | . 6 6 Average Capacity 6 | . 6 6 Most Carried 6 | . 6 1 Average Carried 2 | . 4 1 Final Capacity 6 | 6 6 6 Final Carried 6 | 6 1 1 Class Distribution -------------------- 100% | Mutant Dominant Class ---------------- Mutant | -10/Materials Mutant | -9/Materials Resources | -11 -10 -9 ----------- Run | Scr Mat Mat Matter Collected 316 | 200 30 86 Remotely . | . . . Salvage Created 179 | . 167 12 Parts 15 | . 14 1 Haulers Intercepted . | . . . Recyclers Shooed . | . . . Parts Field Recycled . | . . . Retrieved Matter . | . . . Parts Self-Destructed . | . . . Prevented . | . . . Kills | -11 -10 -9 ------- Run | Scr Mat Mat Combat Hostiles Destroyed 5 | . 4 1 Guns 5 | . 4 1 Classes Destroyed 3 | . 2 1 Watcher 1 | . 1 . Swarmer 1 | . . 1 Grunt 4 | . 4 . Best Kill Streak 3 | . 3 1 Combat Bots Only 2 | . 2 1 Max Kills in Single Turn 1 | . 1 1 Gunslinging . | . . . Exploded . | . . . Melee . | . . . Uniques/NPCs Destroyed . | . . . Combat | -11 -10 -9 -------- Run | Scr Mat Mat Damage Taken 1147 | . 377 770 Core 460 | . 57 403 Absorbed by Shields . | . . . Core Remaining (%) 88 | 100 77 . Volleys Fired 28 | . 26 2 Largest 2 | . 2 1 Hottest 40 | . 40 23 Shots Fired 38 | . 36 2 Gun 38 | . 36 2 Cannon . | . . . Launcher . | . . . Special . | . . . Kinetic 38 | . 36 2 Thermal . | . . . Explosive . | . . . Electromagnetic . | . . . Robot Hit Streak 11 | . 11 2 Robot Miss Streak 3 | . 3 2 Penetration Max . | . . . Secondary Targets . | . . . Shots Hit Robots 30 | . 25 5 Core Hits 12 | . 11 1 Critical Hits . | . . . Critical Kills . | . . . Critical Parts Destroyed . | . . . Melee Attacks 8 | . . 8 Impact . | . . . Slashing 8 | . . 8 Piercing . | . . . Sneak Attacks 1 | . . 1 Combat Hostiles . | . . . Follow-up Attacks . | . . . Damage Inflicted 409 | . 242 167 Guns 266 | . 242 24 Cannons . | . . . Explosions . | . . . Melee 143 | . . 143 Ramming . | . . . Kinetic 266 | . 242 24 Thermal . | . . . Explosive . | . . . Electromagnetic . | . . . Impact . | . . . Slashing 143 | . . 143 Piercing . | . . . Highest Corruption . | . . . Average Corruption . | . . . Corruption Purged . | . . . Overload Shots . | . . . Overflow Damage 38 | . . 38 Projectiles . | . . . Explosions . | . . . Melee 38 | . . 38 Knockbacks . | . . . Impact . | . . . Kinetic . | . . . Secondary . | . . . Self-Inflicted Damage . | . . . Shots . | . . . Rammed . | . . . Targets Rammed . | . . . Kicked . | . . . Crushed . | . . . Highest Temperature 12 | . 12 . Average Temperature 6 | . 6 . Received Heat Transfer 168 | . 168 . Siege Activations . | . . . Robots Corrupted . | . . . Combat Hostiles . | . . . Parts Fried . | . . . Impact Corruptions . | . . . Robots Melted . | . . . Combat Hostiles . | . . . Parts Melted . | . . . Heat Transferred . | . . . Parts Sabotaged . | . . . Parts Stolen . | . . . Parts Stripped . | . . . Power Chain Reactions . | . . . Missiles Intercepted . | . . . Alert | -11 -10 -9 ------- Run | Scr Mat Mat Peak Influence 122 | . 122 56 Initial 46 | . . 46 Average 49 | . 54 43 Maximum Alert Level . | . . . Low Security (%) 100 | . 100 100 Level 1 . | . . . Level 2 . | . . . Level 3 . | . . . Level 4 . | . . . Level 5 . | . . . High Security . | . . . Max Security . | . . . Squads Dispatched 2 | . 2 . Investigation . | . . . Extermination . | . . . Reinforcement 2 | . 2 . Assault . | . . . Garrison . | . . . Intercept . | . . . Construction Impeded . | . . . Haulers Reinforced . | . . . Stealth | -11 -10 -9 --------- Run | Scr Mat Mat Distress Signals . | . . . Communications Jammed . | . . . Distress Signals . | . . . Times Spotted 19 | . 13 6 Peak Tracking Total 6 | . 5 6 Tactical Retreats 2 | . . 2 Traps | -11 -10 -9 ------- Run | Scr Mat Mat Traps Triggered 2 | . 2 . Indirectly . | . . . Trap Hack Attempts . | . . . Triggered . | . . . Disarmed . | . . . Reprogrammed . | . . . Reused . | . . . Traps Extracted . | . . . Installed . | . . . Triggered . | . . . Machines | -11 -10 -9 ---------- Run | Scr Mat Mat Machines Disabled . | . . . Max in Single Turn . | . . . Machines Sabotaged . | . . . Garrisons Compromised . | . . . Overloaded Fab Kills . | . . . Fab Network Shutdowns . | . . . Hacking | -11 -10 -9 --------- Run | Scr Mat Mat Machines Accessed 2 | . 2 . Terminals 2 | . 2 . Fabricators . | . . . Repair Stations . | . . . Recycling Units . | . . . Scanalyzers . | . . . Garrison Access . | . . . Total Hacks 3 | . 3 . Successful 3 | . 3 . Failed . | . . . Catastrophic . | . . . Database Lockouts . | . . . Manual . | . . . Terminals 3 | . 3 . Fabricators . | . . . Repair Stations . | . . . Recycling Units . | . . . Scanalyzers . | . . . Garrison Access . | . . . Terminal Hacks 3 | . 3 . Record 3 | . 3 . Fabricator Hacks . | . . . Repair Station Hacks . | . . . Recycling Unit Hacks . | . . . Scanalyzer . | . . . Garrison Access Hacks . | . . . Unauthorized Hacks . | . . . Terminals . | . . . Fabricators . | . . . Repair Stations . | . . . Recycling Units . | . . . Scanalyzers . | . . . Garrison Access . | . . . Data Cores Recovered . | . . . Used . | . . . Hacking Detections 1 | . 1 . Full Trace Events . | . . . Feedback Events . | . . . Feedback Blocked . | . . . Robot Schematics Acquired . | . . . Robots Built . | . . . Matter . | . . . Time . | . . . Total Robot Build Rating . | . . . Part Schematics Acquired . | . . . Parts Built . | . . . Matter . | . . . Time . | . . . Total Part Build Rating . | . . . Parts Repaired . | . . . Time . | . . . Parts Recycled . | . . . Recycled Matter . | . . . Retrieved Matter . | . . . Retrieved Components . | . . . Parts Scanalyzed . | . . . Part Schematics Acquired . | . . . Parts Damaged . | . . . Bothacking | -11 -10 -9 ------------ Run | Scr Mat Mat Used RIF Installer . | . . . Robots Hacked . | . . . Non-combat . | . . . Combat . | . . . Robot Hacks Applied . | . . . Relay Couplers Released . | . . . Robots Rewired . | . . . Allies Hacked . | . . . Hacks Repelled . | . . . Allies | -11 -10 -9 -------- Run | Scr Mat Mat Total Allies . | . . . Largest Group . | . . . Highest-Rated Group . | . . . Highest-Rated Ally . | . . . Total Orders . | . . . Ally Attacks . | . . . Total Damage . | . . . Kills . | . . . Allies Corrupted . | . . . Allies Melted . | . . . Intel | -11 -10 -9 ------- Run | Scr Mat Mat Robot Analysis Total . | . . . Derelict Logs Recovered . | . . . Drone Launches . | . . . Drone Recoveries . | . . . Exploration | -11 -10 -9 ------------- Run | Scr Mat Mat Turns Passed 445 | . 238 207 Spaces Moved 250 | 1 116 133 Core 66 | . 7 59 Treads 89 | . 15 74 Legs 95 | 1 94 . Wheels . | . . . Hover . | . . . Flight . | . . . Fastest Speed 100 | 120 100 100 Average Speed 128 | 120 123 133 Slowest Speed 160 | 120 160 160 Overloaded Moves . | . . . Propulsion Burnouts . | . . . Robots Hopped . | . . . Cave-ins Triggered . | . . . Exploration Rate (%) 15 | 3 28 16 Regions Visited 2 Branch Regions . Pre-discovered Areas . | . . . Known Exits Taken . | . . . Unknown Exits Taken 2 | 1 1 . Scrap Searched . | . . . Spaces Dug . | . . . Terrain Destroyed . | . . . Melee . | . . . Projectile . | . . . AOE . | . . . Terrain Rammed . | . . . Walls Destroyed . | . . . Machines Disabled . | . . . Actions | -11 -10 -9 --------- Run | Scr Mat Mat Total 323 | . 179 144 Wait 28 | . 28 . Move 248 | . 115 133 Hop . | . . . Pick Up 2 | . 2 . Fast Attach 2 | . 1 1 Attach 5 | . 5 . Detach . | . . . Swap . | . . . Drop 2 | . 2 . Fire 28 | . 26 2 Melee 8 | . . 8 Ram . | . . . Kick . | . . . Crush . | . . . Escape Stasis . | . . . Rewire . | . . . Trap . | . . . Miscellaneous . | . . . Route ------- -11/Scrapyard -10/Materials -9/Materials History --------- Turn | Location | Event 1 | -11/Scrapyard | Discovered new exit (range 0) 1 | -11/Scrapyard | Entered Materials 230 | -10/Materials | Discovered new exit (range 7) 239 | -10/Materials | Entered another Materials area 239 | -9/Materials | Evolved 2 slots: Propulsion x1, Utility x1 301 | -9/Materials | Build established: Mutant 412 | -9/Materials | Core integrity fell below 50% 432 | -9/Materials | Core integrity fell below 20% 438 | -9/Materials | Lost 4 parts (2n2w) 446 | -9/Materials | Destroyed by S-10 Pest with Light Assault Rifle Last Messages --------------- 00268_ T-07 Excavator is excavating. 00290_ K-01 Serf collects debris. 00358_ C-30 ARC bursts open, deploying its payload. 00358_ S-10 Pest unfolds itself. 00364_ Assault Rifle destroyed. 00365_ K-01 Serf collects debris. 00366_ Destroyed Flight Unit. 00369_ K-01 Serf collects debris. 00372_ K-01 Serf cleans the Nuclear Reactor. 00375_ Lgt. Treads destroyed. 00375_ K-01 Serf cleans the Nuclear Reactor. 00379_ Acquired 86 matter. 00380_ Lgt. Treads destroyed. 00397_ S-10 Pest destroyed. 00401_ R-06 Scavenger collects Flight Unit. 00403_ Sneak attack on K-01 Serf. 00403_ Destroyed Lgt. Ion Engine. 00407_ Mining Claw destroyed. 00443_ Acquired Shotgun. 00444_ S-10 Pest destroyed. Map ----- +----------------------------------------------------+ | | | | | | | | | | | | | | | | | | | | | | | | | | | | | | | | | | | | | | | | | | | | | ??????????????????????????? | | ######????????????????????? | | # [#????????????????????? | | # @ #######??????????????? | | # s%# #??????????????? | | # "" # #####??????????? | | # T" + T #??????????? | | #s"" # ### #??????????? | | # # #?# #??????????? | | ########+##### #??????????? | | ???# """ """ # #??????????? | | ???# """ """ # #??????????? | | ???# """ """ # #??????????? | | ???# # #??????????? | | ???# ! # #??????????? | | ???# # #??????????? | | ???# # #??????????? | | ???# # #??????????? | | ???########### #??????????? | | ?????"" """ ## #??????????? | | ?????"" """ ## ############ | | ??? """ """ # | | ??# /% | | ??# # | | ??# # ########### | | ??# # #??!! #??? | | ??# # # !! #??? | | ??########### + !! #??? | +----------------------------------------------------+ Best States ------------- Heat Dissipation 28 Energy Generation 10 Energy Capacity 250 Matter Stores 300 Matter Capacity 300 Sight Range 16 Robot Scan Range 10 Terrain Scan Density 10 Evasion (%) 40 Recoil Reduction 2 Item Schematics ----------------- None Robot Schematics ------------------ None Fabricated ------------ Nothing Alien Tech Used ----------------- None Achievements -------------- None Challenges ------------ None Game ------ Seed AngularAlphaBeam Manual? 0 Play Time 00:14:29 Cumulative 23.0 hours Start 2021.04.13 @ 15:26:43 End 2021.04.13 @ 16:02:53 Sessions 1 Manual Loads 0 Difficulty Rogue Special Mode None Game No. 32 Rogue 17 Adventurer 15 Explorer 0 Win Type - Total 0 Types 0/0/0/0/0/0/0/0/0 Lore% 18 Gallery% 28 Achievement% 19 Wizard Run 0 Options --------- ASCII 0 Keyboard 0 Movement Mouse Keybinds 0 Fullscreen 1 Font 18/SmallcapsGlow Map View 76x50 Tactical HUD 1 Map Filters NONE Filters NONE Steam 1 RUN: 26de258a-7081-4110-a9ba-c10e2904b396